Workbook

Sheet Mechanics of WROI
A2: Cash Flow and IRR Formulas | D2: 1 | E2: 2 | F2: 3
B3: Cash Flow | D3: -100 | E3: 70 | F3: 160
B4: Regular old IRR | D4: =IRR(D3:F3) -> 0.6624404748 | H4: =_xlfn.FORMULATEXT(D4) -> =IRR(D3:F3)
B6: Investment Rate | D6: =F6/100 -> 0.11 | F6: 11
B7: Modified IRR | D7: =MIRR(D3:F3,D6,D6) -> 0.5417522499 | H7: =_xlfn.FORMULATEXT(D7) -> =MIRR(D3:F3,D6,D6)
A9: Demonstration that IRR is CAGR
C10: 0 | D10: =-D3 -> 100
C11: 1 | D11: =E3 -> 70 | E11: =D11*(1+D4) -> 116.3708332 | H11: =_xlfn.FORMULATEXT(E11) -> =D11*(1+D4)
C12: 2 | D12: =F3 -> 160 | E12: =E11+D12 -> 276.3708332 | H12: =_xlfn.FORMULATEXT(E12) -> =E11+D12
B14: CAGR with Re-investment at IRR | D14: =(E12/D10)^(1/2)-1 -> 0.6624404748 | H14: =_xlfn.FORMULATEXT(D14) -> =(E12/D10)^(1/2)-1
A16: Same Example with Re-investment at Different Rate
C18: 0 | D18: =D10 -> 100
C19: 1 | D19: =D11 -> 70 | E19: =D19*(1+D6) -> 77.7 | H19: =_xlfn.FORMULATEXT(E19) -> =D19*(1+D6)
C20: 2 | D20: =D12 -> 160 | E20: =E19+D20 -> 237.7 | H20: =_xlfn.FORMULATEXT(E20) -> =E19+D20
B22: CAGR with Re-investment Rate | D22: =(E20/D18)^(1/2)-1 -> 0.5417522499 | H22: =_xlfn.FORMULATEXT(D22) -> =(E20/D18)^(1/2)-1
A24: Valuation
B25: Discount Rate | D25: =D6 -> 0.11
B26: Cash Flow | D26: =D3 -> -100 | E26: =E3 -> 70 | F26: 160 | K26: The big problem with MIRR
B27: NPV of Cash Flow | D27: =NPV(D25,D26:F26) -> 83.71410125 | H27: =_xlfn.FORMULATEXT(D27) -> =NPV(D25,D26:F26) | K27: Discount rate goes up and MIRR goes up
B28: IRR | D28: =D4 -> 0.6624404748
B29: MIRR | D29: =MIRR(D26:F26,D25,D25) -> 0.5417522499 | K29: Correct is weighted IRR that goes down
B30: WROI | D30: =D42 -> 0.8211180124
A32: Weighted Average ROIC | E32: 1 | F32: 2
B33: EBITDA | E33: =E3 -> 70 | F33: =F3 -> 160
B34: Depreciation | E34: =-$D$26/2 -> 50 | F34: =-$D$26/2 -> 50 | I34: =_xlfn.FORMULATEXT(E34) -> =-$D$26/2 | M34: Note that the weighted ROIC does not make any re-investment assumptions
B35: EBIT | E35: =E26-E34 -> 20 | F35: =F26-F34 -> 110 | I35: =_xlfn.FORMULATEXT(E35) -> =E26-E34 | M35: Note that the weighted ROIC can be used to derive value
B36: Investment (BOP) | E36: =-D26 -> 100 | F36: =E36-E34 -> 50 | I36: =_xlfn.FORMULATEXT(F36) -> =E36-E34 | M36: Cash flow is different, but the NPV is the same
B38: PV Factor | C38: =D6 -> 0.11 | E38: =1/(1+$D$25)^E32 -> 0.9009009009 | F38: =1/(1+$D$25)^F32 -> 0.8116224332 | I38: =_xlfn.FORMULATEXT(F38) -> =1/(1+$D$25)^F32
B39: PV of Investment | E39: =E38*E36 -> 90.09009009 | F39: =F38*F36 -> 40.58112166 | I39: =_xlfn.FORMULATEXT(F39) -> =F38*F36
B40: Weight of PV Investment | E40: =E39/SUM(39:39) -> 0.6894409938 | F40: =F39/SUM(39:39) -> 0.3105590062 | I40: =_xlfn.FORMULATEXT(F40) -> =F39/SUM(39:39)
B41: ROIC | E41: =E35/E36 -> 0.2 | F41: =F35/F36 -> 2.2 | I41: =_xlfn.FORMULATEXT(F41) -> =F35/F36
B42: Weighted ROIC | D42: =SUMPRODUCT(E41:F41,E40:F40) -> 0.8211180124 | I42: =_xlfn.FORMULATEXT(D42) -> =SUMPRODUCT(E41:F41,E40:F40)
A44: Using WROIC to Compute Value
B45: ROIC | E45: =$D$42 -> 0.8211180124 | F45: =E45 -> 0.8211180124
B46: Investment Balance | E46: =E36 -> 100 | F46: =F36 -> 50
B47: Income at Weighted ROIC | E47: =E46*E45 -> 82.11180124 | F47: =F46*F45 -> 41.05590062 | H47: =_xlfn.FORMULATEXT(E47) -> =E46*E45
B48: Add: Depreciation | E48: =E34 -> 50 | F48: =F34 -> 50
B49: Total Cash Flow | D49: =D26 -> -100 | E49: =SUM(E47:E48) -> 132.1118012 | F49: =SUM(F47:F48) -> 91.05590062 | H49: =_xlfn.FORMULATEXT(E49) -> =SUM(E47:E48)
B50: PV of Cash Flow | C50: =D25 -> 0.11 | D50: =NPV(C50,D49:F49) -> 83.71410125 | H50: =_xlfn.FORMULATEXT(D50) -> =NPV(C50,D49:F49)
D52: 0 | E52: 1 | F52: 2
B53: Original Cash Flow | C53: =IRR(D53:F53) -> 0.6624404748 | D53: =D49 -> -100 | E53: =E3 -> 70 | F53: =F3 -> 160
B54: Adjusted Cash Flow | D54: =D49 -> -100 | E54: =E49 -> 132.1118012 | F54: =F49 -> 91.05590062
B55: With Sale | F55: =F54/(1+$C$50)^F52+E54/(1+C50)^E52 -> 192.9226524
C56: =(F56/D56)^(1/2)-1 -> 0.3889659909 | D56: =-D54 -> 100 | F56: =F55 -> 192.9226524
E63: WROI | F63: MIRR | G63: IRR
E64: =D42 -> 0.8211180124 | F64: =D29 -> 0.5417522499 | G64: =D28 -> 0.6624404748
D65: 0.05 | E65: 0.8451612903 | F65: 0.528070679 | G65: 0.6624404748
D66: 0.07 | E66: 0.8369426752 | F66: 0.5326447729 | G66: 0.6624404748
C67: Disc Rate | D67: 0.1 | E67: 0.825 | F67: 0.5394804318 | G67: 0.6624404748
D68: 0.2 | E68: 0.7882352941 | F68: 0.5620499352 | G68: 0.6624404748
D69: 0.3 | E69: 0.7555555556 | F69: 0.5842979518 | G69: 0.6624404748

Sheet Ranking
D1: 0 | E1: 1 | F1: 2 | G1: 3 | H1: 4 | I1: 5
B2: Cash Flow | D2: -10 | E2: 5 | F2: 5 | G2: 5 | H2: 5 | I2: 5
B3: IRR | C3: =IRR(D2:I2) -> 0.410414965 | K3: =_xlfn.FORMULATEXT(C3) -> =IRR(D2:I2)
B4: Discount Rate | C4: 0.1
B5: NPV | C5: =NPV(C4,D2:I2) -> 8.139939861 | K5: =_xlfn.FORMULATEXT(C5) -> =NPV(C4,D2:I2)
B6: MIRR | C6: =MIRR(D2:I2,C4,C4) -> 0.2500648893 | K6: =_xlfn.FORMULATEXT(C6) -> =MIRR(D2:I2,C4,C4)
B7: Depreciation | E7: =-$D$2/5 -> 2 | F7: =-$D$2/5 -> 2 | G7: 2 | H7: 2 | I7: 2 | K7: =_xlfn.FORMULATEXT(E7) -> =-$D$2/5
B8: EBIT | E8: =E2-E7 -> 3 | F8: =F2-F7 -> 3 | G8: 3 | H8: 3 | I8: 3 | K8: =_xlfn.FORMULATEXT(E8) -> =E2-E7
B9: Investment | E9: =-D2 -> 10 | F9: =E9-E7 -> 8 | G9: =F9-F7 -> 6 | H9: =G9-G7 -> 4 | I9: =H9-H7 -> 2 | K9: =-D2
B10: ROI | E10: =E8/E9 -> 0.3 | F10: =F8/F9 -> 0.375 | G10: =G8/G9 -> 0.5 | H10: =H8/H9 -> 0.75 | I10: =I8/I9 -> 1.5 | K10: =E8/E9
B11: PV Factor | E11: =1/(1+$C$4)^E1 -> 0.9090909091 | F11: =1/(1+$C$4)^F1 -> 0.826446281 | G11: 0.7513148009 | H11: 0.6830134554 | I11: 0.6209213231 | K11: =1/(1+$C$4)^E1
B12: PV of Investment | E12: =E11*E9 -> 9.090909091 | F12: =F11*F9 -> 6.611570248 | G12: =G11*G9 -> 4.507888805 | H12: =H11*H9 -> 2.732053821 | I12: =I11*I9 -> 1.241842646 | K12: =E11*E9
B13: Weighting | E13: =E12/SUM(12:12) -> 0.3759018203 | F13: =F12/SUM(12:12) -> 0.2733831421 | G13: 0.1863975969 | H13: 0.1129682405 | I13: 0.05134920024 | K13: =E12/SUM(12:12)
B14: Weighted ROIC | C14: =SUMPRODUCT(E13:I13,E10:I10) -> 0.4702380035 | K14: =_xlfn.FORMULATEXT(C14) -> =SUMPRODUCT(E13:I13,E10:I10)
B15: Cash Flow from WROIC | D15: =D2 -> -10 | E15: =$C$14*E9+E7 -> 6.702380035 | F15: =$C$14*F9+F7 -> 5.761904028 | G15: 4.821428021 | H15: 3.880952014 | I15: 2.940476007 | K15: =_xlfn.FORMULATEXT(E15) -> =$C$14*E9+E7
B16: Value from WROI | C16: =NPV(C4,D15:I15) -> 8.139939861 | K16: =_xlfn.FORMULATEXT(C16) -> =NPV(C4,D15:I15)
D18: 1 | E18: 2 | F18: 3 | G18: 4 | H18: 5 | I18: 6
B19: Cash Flow | D19: -10 | E19: 0 | F19: 0 | G19: 0 | H19: 0 | I19: 50 | N19: =C20-C3 -> -0.03068530355
B20: IRR | C20: =IRR(D19:I19) -> 0.3797296615 | K20: =_xlfn.FORMULATEXT(C20) -> =IRR(D19:I19)
B21: Discount Rate | C21: =C4 -> 0.1
B22: NPV | C22: =NPV(C21,D19:I19) -> 19.13278741 | K22: =_xlfn.FORMULATEXT(C22) -> =NPV(C21,D19:I19)
B23: MIRR | C23: =MIRR(D19:I19,C21,C21) -> 0.3797296615 | K23: =_xlfn.FORMULATEXT(C23) -> =MIRR(D19:I19,C21,C21)
B24: Depreciation | E24: =-$D$19/5 -> 2 | F24: =-$D$19/5 -> 2 | G24: 2 | H24: 2 | I24: 2 | K24: =_xlfn.FORMULATEXT(E24) -> =-$D$19/5
B25: EBIT | E25: =E19-E24 -> -2 | F25: =F19-F24 -> -2 | G25: -2 | H25: -2 | I25: 48 | K25: =_xlfn.FORMULATEXT(E25) -> =E19-E24
B26: Investment | E26: =-D19 -> 10 | F26: =E26-E24 -> 8 | G26: =F26-F24 -> 6 | H26: =G26-G24 -> 4 | I26: =H26-H24 -> 2 | K26: =-D19
B27: ROI | E27: =E25/E26 -> -0.2 | F27: =F25/F26 -> -0.25 | G27: =G25/G26 -> -0.3333333333 | H27: =H25/H26 -> -0.5 | I27: =I25/I26 -> 24 | K27: =E25/E26
B28: PV of Investment | E28: =E26*E11 -> 9.090909091 | F28: =F26*F11 -> 6.611570248 | G28: =G26*G11 -> 4.507888805 | H28: =H26*H11 -> 2.732053821 | I28: =I26*I11 -> 1.241842646 | K28: =E26*E11
B29: Weighting | E29: =E28/SUM(28:28) -> 0.3759018203 | F29: =F28/SUM(28:28) -> 0.2733831421 | G29: 0.1863975969 | H29: 0.1129682405 | I29: 0.05134920024 | K29: =E28/SUM(28:28)
B30: Weighted ROIC | C30: =SUMPRODUCT(E29:I29,E27:I27) -> 0.9702380035 | K30: =_xlfn.FORMULATEXT(C30) -> =SUMPRODUCT(E29:I29,E27:I27)
B31: Cash Flow from WROIC | D31: =D19 -> -10 | E31: =$C$30*E26+E24 -> 11.70238004 | F31: =$C$30*F26+F24 -> 9.761904028 | G31: 7.821428021 | H31: 5.880952014 | I31: 3.940476007 | K31: =_xlfn.FORMULATEXT(E31) -> =$C$30*E26+E24
B32: Value from WROIC | C32: =NPV(C21,D31:I31) -> 19.13278741 | K32: =_xlfn.FORMULATEXT(C32) -> =NPV(C21,D31:I31)

Sheet Ranking (2)
D1: 0 | E1: 1 | F1: 2 | G1: 3 | H1: 4 | I1: 5 | J1: 6 | K1: 7 | L1: 8 | M1: 9 | N1: 10
B2: Cash Flow | D2: -10 | E2: 5 | F2: =E2 -> 5 | G2: =F2 -> 5 | H2: 5 | I2: 5
B3: IRR | C3: =IRR(D2:I2) -> 0.410414965
B4: Discount Rate | C4: 0.1
B5: NPV | C5: =NPV(C4,D2:I2) -> 8.139939861 | D5: =C5/-D2 -> 0.8139939861
B6: MIRR | C6: =MIRR(D2:I2,C4,C4) -> 0.2500648893
B7: Depreciation | E7: =-$D$2/5 -> 2 | F7: =-$D$2/5 -> 2 | G7: 2 | H7: 2 | I7: 2
B8: EBIT | E8: =E2-E7 -> 3 | F8: =F2-F7 -> 3 | G8: 3 | H8: 3 | I8: 3
B9: Investment | E9: =-D2 -> 10 | F9: =E9-E7 -> 8 | G9: =F9-F7 -> 6 | H9: =G9-G7 -> 4 | I9: =H9-H7 -> 2
B10: ROI | E10: =E8/E9 -> 0.3 | F10: =F8/F9 -> 0.375 | G10: =G8/G9 -> 0.5 | H10: =H8/H9 -> 0.75 | I10: =I8/I9 -> 1.5
B11: PV Factor | E11: =1/(1+$C$4)^E1 -> 0.9090909091 | F11: =1/(1+$C$4)^F1 -> 0.826446281 | G11: 0.7513148009 | H11: 0.6830134554 | I11: 0.6209213231 | J11: 0.5644739301 | K11: 0.5131581182 | L11: 0.4665073802 | M11: 0.4240976184 | N11: 0.3855432894
B12: PV of Investment | E12: =E11*E9 -> 9.090909091 | F12: =F11*F9 -> 6.611570248 | G12: =G11*G9 -> 4.507888805 | H12: =H11*H9 -> 2.732053821 | I12: =I11*I9 -> 1.241842646
B13: Weighting | E13: =E12/SUM(12:12) -> 0.3759018203 | F13: =F12/SUM(12:12) -> 0.2733831421 | G13: 0.1863975969 | H13: 0.1129682405 | I13: 0.05134920024
B14: Weighted ROIC | C14: =SUMPRODUCT(E13:I13,E10:I10) -> 0.4702380035
B15: Weighted ROIC | E15: =$C$14 -> 0.4702380035 | F15: =$C$14 -> 0.4702380035 | G15: 0.4702380035 | H15: 0.4702380035 | I15: 0.4702380035
B16: Weighte ROIC x Nominal Investment | E16: =E15*E9 -> 4.702380035 | F16: =F15*F9 -> 3.761904028 | G16: =G15*G9 -> 2.821428021 | H16: =H15*H9 -> 1.880952014 | I16: =I15*I9 -> 0.9404760071
B17: Cash Flow at Weighted ROIC | D17: =D2 -> -10 | E17: =E16+E7 -> 6.702380035 | F17: =F16+F7 -> 5.761904028 | G17: 4.821428021 | H17: 3.880952014 | I17: 2.940476007
B18: NPV of Cash Flow | C18: =NPV(C4,D17:I17) -> 8.139939861
E21: 1 | F21: 2 | G21: 3 | H21: 4 | I21: 5 | J21: 6 | K21: 7 | L21: 8 | M21: 9 | N21: 10
B22: Cash Flow | D22: -10 | E22: =E2 -> 5 | F22: =E22 -> 5 | G22: =F22 -> 5 | H22: 5 | I22: 5 | J22: 5 | K22: 5 | L22: 5 | M22: 5 | N22: 5
B23: IRR | C23: =IRR(D22:N22) -> 0.4907776574 | D23: =C23-C3 -> 0.08036269239
B24: Discount Rate | C24: =C4 -> 0.1
B25: NPV | C25: =NPV(C24,D22:N22) -> 18.83894139 | D25: =C25/-D22 -> 1.883894139
B26: MIRR | C26: =MIRR(D22:N22,C24,C24) -> 0.2306620679
B27: Depreciation | E27: =-$D$22/10 -> 1 | F27: =-$D$22/10 -> 1 | G27: 1 | H27: 1 | I27: 1 | J27: 1 | K27: 1 | L27: 1 | M27: 1 | N27: 1
B28: EBIT | E28: =E22-E27 -> 4 | F28: =F22-F27 -> 4 | G28: 4 | H28: 4 | I28: 4 | J28: 4 | K28: 4 | L28: 4 | M28: 4 | N28: 4
B29: Investment | E29: =-D22 -> 10 | F29: =E29-E27 -> 9 | G29: =F29-F27 -> 8 | H29: =G29-G27 -> 7 | I29: =H29-H27 -> 6 | J29: =I29-I27 -> 5 | K29: =J29-J27 -> 4 | L29: =K29-K27 -> 3 | M29: =L29-L27 -> 2 | N29: =M29-M27 -> 1
B30: ROI | E30: =E28/E29 -> 0.4 | F30: =F28/F29 -> 0.4444444444 | G30: =G28/G29 -> 0.5 | H30: =H28/H29 -> 0.5714285714 | I30: =I28/I29 -> 0.6666666667 | J30: =J28/J29 -> 0.8 | K30: =K28/K29 -> 1 | L30: =L28/L29 -> 1.333333333 | M30: =M28/M29 -> 2 | N30: =N28/N29 -> 4
B31: PV of Investment | E31: =E29*E11 -> 9.090909091 | F31: =F29*F11 -> 7.438016529 | G31: =G29*G11 -> 6.010518407 | H31: =H29*H11 -> 4.781094188 | I31: =I29*I11 -> 3.725527938 | J31: =J29*J11 -> 2.82236965 | K31: =K29*K11 -> 2.052632473 | L31: =L29*L11 -> 1.399522141 | M31: =M29*M11 -> 0.8481952367 | N31: =N29*N11 -> 0.3855432894
B32: Weighting | E32: =E31/SUM(31:31) -> 0.2357947691 | F32: =F31/SUM(31:31) -> 0.1929229929 | G32: 0.155897368 | H32: 0.12400927 | I32: 0.0966306 | J32: =J31/SUM(31:31) -> 0.073205 | K32: =K31/SUM(31:31) -> 0.05324 | L32: =L31/SUM(31:31) -> 0.0363 | M32: =M31/SUM(31:31) -> 0.022 | N32: =N31/SUM(31:31) -> 0.01
B33: Weighted ROIC | C33: =SUMPRODUCT(E32:N32,E30:N30) -> 0.637496984

Sheet Simple Growth Rate
E2: 0 | F2: 1 | G2: 2
B3: IRR | C3: =IRR(E3:G3) -> 0.1401754251 | E3: -100 | F3: 0 | G3: 130 | I3: =_xlfn.FORMULATEXT(C3) -> =IRR(E3:G3)
B5: CAGR | C5: =(G5/E5)^(1/2)-1 -> 0.1401754251 | E5: =-E3 -> 100 | F5: =F3 -> 0 | G5: =G3 -> 130 | I5: =_xlfn.FORMULATEXT(C5) -> =(G5/E5)^(1/2)-1

Sheet Neg and Pos
B1: 2015-11-30 | C1: 2015-12-31 | D1: 2016-01-31 | E1: 2016-02-29 | F1: 2016-03-31 | G1: 2016-04-30 | H1: 2016-05-31 | I1: 2016-06-30 | J1: 2016-07-31 | K1: 2016-08-31 | L1: 2016-09-30 | M1: 2016-10-31 | N1: 2016-11-30 | O1: 2016-12-31 | P1: 2017-01-31 | Q1: 2017-02-28 | R1: 2017-03-31 | S1: 2017-04-30 | T1: 2017-05-31 | U1: 2017-06-30 | V1: 2017-07-31 | W1: 2017-08-31 | X1: 2017-09-30 | Y1: 2017-10-31 | Z1: 2017-11-30 | AA1: 2017-12-31 | AB1: 2018-03-31 | AC1: 2018-06-30 | AD1: 2018-09-30 | AE1: 2018-12-31 | AF1: 2019-03-31 | AG1: 2019-06-30 | AH1: 2019-09-30 | AI1: 2019-12-31 | AJ1: 2020-03-31 | AK1: 2020-06-30 | AL1: 2020-09-30 | AM1: 2020-12-31 | AN1: 2021-03-31 | AO1: 2021-06-30 | AP1: 2021-09-30 | AQ1: 2021-12-31 | AR1: 2022-03-31 | AS1: 2022-06-30 | AT1: 2022-09-30 | AU1: 2022-12-31 | AV1: 2023-03-31 | AW1: 2023-06-30 | AX1: 2023-09-30 | AY1: 2023-12-31 | AZ1: 2024-03-31 | BA1: 2024-06-30 | BB1: 2024-09-30 | BC1: 2024-12-31 | BD1: 2025-03-31 | BE1: 2025-06-30 | BF1: 2025-09-30 | BG1: 2025-12-31 | BH1: 2026-03-31 | BI1: 2026-06-30 | BJ1: 2026-09-30 | BK1: 2026-12-31 | BL1: 2027-03-31 | BM1: 2027-06-30 | BN1: 2027-09-30 | BO1: 2027-12-31 | BP1: 2028-03-31 | BQ1: 2028-06-30 | BR1: 2028-09-30 | BS1: 2028-12-31 | BT1: 2029-03-31 | BU1: 2029-06-30 | BV1: 2029-09-30 | BW1: 2029-12-31 | BX1: 2030-03-31 | BY1: 2030-06-30 | BZ1: 2030-09-30 | CA1: 2030-12-31 | CB1: 2031-03-31 | CC1: 2031-06-30 | CD1: 2031-09-30 | CE1: 2031-12-31 | CF1: 2032-03-31 | CG1: 2032-06-30 | CH1: 2032-09-30 | CI1: 2032-12-31 | CJ1: 2033-03-31 | CK1: 2033-06-30 | CL1: 2033-09-30 | CM1: 2033-12-31 | CN1: 2034-03-31 | CO1: 2034-06-30 | CP1: 2034-09-30 | CQ1: 2034-12-31 | CR1: 2035-03-31 | CS1: 2035-06-30 | CT1: 2035-09-30 | CU1: 2035-12-31 | CV1: 2036-03-31 | CW1: 2036-06-30 | CX1: 2036-09-30 | CY1: 2036-12-31 | CZ1: 2037-03-31 | DA1: 2037-06-30 | DB1: 2037-09-30 | DC1: 2037-12-31 | DD1: 2038-03-31 | DE1: 2038-06-30 | DF1: 2038-09-30 | DG1: 2038-12-31 | DH1: 2039-03-31 | DI1: 2039-06-30 | DJ1: 2039-09-30 | DK1: 2039-12-31 | DL1: 2040-03-31 | DM1: 2040-06-30 | DN1: 2040-09-30 | DO1: 2040-12-31 | DP1: 2041-03-31 | DQ1: 2041-06-30 | DR1: 2041-09-30 | DS1: 2041-12-31 | DT1: 2042-03-31 | DU1: 2042-06-30 | DV1: 2042-09-30 | DW1: 2042-12-31 | DX1: 2043-03-31 | DY1: 2043-06-30 | DZ1: 2043-09-30 | EA1: 2043-12-31 | EB1: 2044-03-31 | EC1: 2044-06-30 | ED1: 2044-09-30 | EE1: 2044-12-31 | EF1: 2045-03-31 | EG1: 2045-06-30 | EH1: 2045-09-30 | EI1: 2045-12-31 | EJ1: 2046-03-31 | EK1: 2046-06-30 | EL1: 2046-09-30 | EM1: 2046-12-31 | EN1: 2047-03-31 | EO1: 2047-06-30 | EP1: 2047-09-30 | EQ1: 2047-12-31 | ER1: 2048-03-31 | ES1: 2048-06-30 | ET1: 2048-09-30 | EU1: 2048-12-31 | EV1: 2049-03-31 | EW1: 2049-06-30 | EX1: 2049-09-30 | EY1: 2049-12-31 | EZ1: 2050-03-31 | FA1: 2050-06-30 | FB1: 2050-09-30 | FC1: 2050-12-31 | FD1: 2051-03-31 | FE1: 2051-06-30 | FF1: 2051-09-30 | FG1: 2051-12-31 | FH1: 2052-03-31 | FI1: 2052-06-30 | FJ1: 2052-09-30 | FK1: 2052-12-31 | FL1: 2053-03-31 | FM1: 2053-06-30 | FN1: 2053-09-30 | FO1: 2053-12-31 | FP1: 2054-03-31 | FQ1: 2054-06-30 | FR1: 2054-09-30 | FS1: 2054-12-31 | FT1: 2055-03-31 | FU1: 2055-06-30
B2: -0.1 | C2: 0 | D2: -900000 | E2: 0 | F2: 0 | G2: 0 | H2: 0 | I2: 0 | J2: 0 | K2: 0 | L2: 0 | M2: -5.634527637e-12 | N2: -5.651362766e-12 | O2: -6.597952858e-12 | P2: -5.672667673e-12 | Q2: -5.697264121e-12 | R2: -5.708574328e-12 | S2: -5.728077722e-12 | T2: -5.738474502e-12 | U2: -5.759055346e-12 | V2: -5.774613802e-12 | W2: -6.714953657e-12 | X2: 57392.79492 | Y2: 55541.41444 | Z2: 57392.79492 | AA2: 57606.16056 | AB2: 60950.15062 | AC2: 64469.28633 | AD2: 64468.40918 | AE2: 64580.3309 | AF2: 61828.22247 | AG2: 63905.62369 | AH2: 63904.81867 | AI2: 64020.46565 | AJ2: 61399.97496 | AK2: 63462.94729 | AL2: 63462.14458 | AM2: 63582.39981 | AN2: 60983.38701 | AO2: 63032.33509 | AP2: =AO2 -> 63032.33509 | AQ2: 25421.60813 | AR2: 24432.48764 | AS2: 25343.39776 | AT2: 25343.07238 | AU2: 25372.60131 | AV2: 24427.45404 | AW2: 25256.83053 | AX2: 25256.5122 | AY2: 25286.56232 | AZ2: 24364.72938 | BA2: 25191.97389 | BB2: 25191.64869 | BC2: 25222.54428 | BD2: 24304.15489 | BE2: 25129.34261 | BF2: 25129.01029 | BG2: 25161.3122 | BH2: 24181.12393 | BI2: 25090.15628 | BJ2: 25089.80179 | BK2: 25122.7963 | BL2: 24189.7044 | BM2: 25011.00834 | BN2: 25010.66103 | BO2: 25044.26916 | BP2: 24135.95991 | BQ2: 24955.43657 | BR2: 24955.08136 | BS2: 24989.65532 | BT2: 24084.61931 | BU2: 24902.35268 | BV2: 24901.9893 | BW2: 24938.137 | BX2: 23965.80071 | BY2: 24874.72872 | BZ2: 24874.34084 | CA2: 24911.29177 | CB2: 23989.43093 | CC2: 24803.93468 | CD2: 24803.55408 | CE2: 24841.22362 | CF2: 23945.73199 | CG2: 24758.74931 | CH2: 24758.35965 | CI2: 24797.13039 | CJ2: 23904.72462 | CK2: 24716.34946 | CL2: 24715.95044 | CM2: 24756.48136 | CN2: 23790.81604 | CO2: 24701.60438 | CP2: 24701.17832 | CQ2: 24745.27873 | CR2: 23510.95912 | CS2: 24640.23043 | CT2: 24639.81169 | CU2: 24698.87825 | CV2: 21765.9826 | CW2: 24606.67966 | CX2: 24606.25057 | CY2: 24671.135 | CZ2: 21183.27635 | DA2: 24576.25144 | DB2: 24575.81163 | DC2: 24647.4869 | DD2: 20490.47739 | DE2: 24575.86895 | DF2: 24575.3993 | DG2: 24652.99529 | DH2: 19961.20251 | DI2: 24525.12923 | DJ2: 24524.66692 | DK2: 24608.58273 | DL2: 19291.1986 | DM2: 23462.72817 | DN2: 148250.0448 | DO2: 118196.1177 | DP2: 5.820766091e-12 | DQ2: 0 | DR2: 0 | DS2: 0 | DT2: 0 | DU2: 0 | DV2: 0 | DW2: 0 | DX2: 0 | DY2: 0 | DZ2: 0 | EA2: 0 | EB2: 0 | EC2: 0 | ED2: 0 | EE2: 0 | EF2: 0 | EG2: 0 | EH2: 0 | EI2: 0 | EJ2: 0 | EK2: 0 | EL2: 0 | EM2: 0 | EN2: 0 | EO2: 0 | EP2: 0 | EQ2: 0 | ER2: 0 | ES2: 0 | ET2: 0 | EU2: 0 | EV2: 0 | EW2: 0 | EX2: 0 | EY2: 0 | EZ2: 0 | FA2: 0 | FB2: 0 | FC2: 0 | FD2: 0 | FE2: 0 | FF2: 0 | FG2: 0 | FH2: 0 | FI2: 0 | FJ2: 0 | FK2: 0 | FL2: 0 | FM2: 0 | FN2: 0 | FO2: 0 | FP2: 0 | FQ2: 0 | FR2: 0 | FS2: 0 | FT2: 0 | FU2: 0
B3: =YEAR(B1) -> 2015 | C3: =YEAR(C1) -> 2015 | D3: 2016 | E3: 2016 | F3: 2016 | G3: 2016 | H3: 2016 | I3: 2016 | J3: 2016 | K3: 2016 | L3: 2016 | M3: 2016 | N3: 2016 | O3: 2016 | P3: 2017 | Q3: 2017 | R3: 2017 | S3: 2017 | T3: 2017 | U3: 2017 | V3: 2017 | W3: 2017 | X3: 2017 | Y3: 2017 | Z3: 2017 | AA3: 2017 | AB3: 2018 | AC3: 2018 | AD3: 2018 | AE3: 2018 | AF3: 2019 | AG3: 2019 | AH3: 2019 | AI3: 2019 | AJ3: 2020 | AK3: 2020 | AL3: 2020 | AM3: 2020 | AN3: 2021 | AO3: 2021 | AP3: 2021 | AQ3: 2021 | AR3: 2022 | AS3: 2022 | AT3: 2022 | AU3: 2022 | AV3: 2023 | AW3: 2023 | AX3: 2023 | AY3: 2023 | AZ3: 2024 | BA3: 2024 | BB3: 2024 | BC3: 2024 | BD3: 2025 | BE3: 2025 | BF3: 2025 | BG3: 2025 | BH3: 2026 | BI3: 2026 | BJ3: 2026 | BK3: 2026 | BL3: 2027 | BM3: 2027 | BN3: 2027 | BO3: =YEAR(BO1) -> 2027 | BP3: 2028 | BQ3: 2028 | BR3: 2028 | BS3: 2028 | BT3: 2029 | BU3: 2029 | BV3: 2029 | BW3: 2029 | BX3: 2030 | BY3: 2030 | BZ3: 2030 | CA3: 2030 | CB3: 2031 | CC3: 2031 | CD3: 2031 | CE3: 2031 | CF3: 2032 | CG3: 2032 | CH3: 2032 | CI3: 2032 | CJ3: 2033 | CK3: 2033 | CL3: 2033 | CM3: 2033 | CN3: 2034 | CO3: 2034 | CP3: 2034 | CQ3: 2034 | CR3: 2035 | CS3: 2035 | CT3: 2035 | CU3: 2035 | CV3: 2036 | CW3: 2036 | CX3: 2036 | CY3: 2036 | CZ3: 2037 | DA3: 2037 | DB3: 2037 | DC3: 2037 | DD3: 2038 | DE3: 2038 | DF3: 2038 | DG3: 2038 | DH3: 2039 | DI3: 2039 | DJ3: 2039 | DK3: 2039 | DL3: 2040 | DM3: 2040 | DN3: 2040 | DO3: 2040 | DP3: 2041 | DQ3: 2041 | DR3: 2041 | DS3: 2041 | DT3: 2042 | DU3: 2042 | DV3: 2042 | DW3: 2042 | DX3: 2043 | DY3: 2043 | DZ3: 2043 | EA3: =YEAR(EA1) -> 2043 | EB3: 2044 | EC3: 2044 | ED3: 2044 | EE3: 2044 | EF3: 2045 | EG3: 2045 | EH3: 2045 | EI3: 2045 | EJ3: 2046 | EK3: 2046 | EL3: 2046 | EM3: 2046 | EN3: 2047 | EO3: 2047 | EP3: 2047 | EQ3: 2047 | ER3: 2048 | ES3: 2048 | ET3: 2048 | EU3: 2048 | EV3: 2049 | EW3: 2049 | EX3: 2049 | EY3: 2049 | EZ3: 2050 | FA3: 2050 | FB3: 2050 | FC3: 2050 | FD3: 2051 | FE3: 2051 | FF3: 2051 | FG3: 2051 | FH3: 2052 | FI3: 2052 | FJ3: 2052 | FK3: 2052 | FL3: 2053 | FM3: 2053 | FN3: 2053 | FO3: 2053 | FP3: 2054 | FQ3: 2054 | FR3: 2054 | FS3: 2054 | FT3: 2055 | FU3: 2055
B5: Year | C5: 2015 | D5: 2016 | E5: 2017 | F5: 2018 | G5: 2019 | H5: 2020 | I5: 2021 | J5: 2022 | K5: 2023 | L5: 2024 | M5: 2025 | N5: 2026 | O5: 2027 | P5: 2028 | Q5: 2029 | R5: 2030 | S5: 2031 | T5: 2032 | U5: 2033 | V5: 2034 | W5: 2035 | X5: 2036 | Y5: 2037 | Z5: 2038 | AA5: 2039 | AB5: 2040 | AC5: 2041 | AD5: 2042 | AE5: 2043 | AF5: 2044 | AG5: 2045 | AH5: 2046 | AI5: 2047 | AJ5: 2048 | AK5: 2049 | AL5: 2050 | AM5: 2051 | AN5: 2052 | AO5: 2053 | AP5: 2054 | AQ5: 2055 | AR5: 2056 | AS5: 2057 | AT5: 2058 | AU5: 2059 | AV5: 2060
B6: Cash Flow | C6: =SUMIF(3:3,C5,2:2) -> -0.1 | D6: =SUMIF(3:3,D5,2:2) -> -900000 | E6: =SUMIF(3:3,E5,2:2) -> 227933.1648 | F6: =SUMIF(3:3,F5,2:2) -> 254468.177 | G6: =SUMIF(3:3,G5,2:2) -> 253659.1305 | H6: =SUMIF(3:3,H5,2:2) -> 251907.4666 | I6: =SUMIF(3:3,I5,2:2) -> 212469.6653 | J6: =SUMIF(3:3,J5,2:2) -> 100491.5591 | K6: =SUMIF(3:3,K5,2:2) -> 100227.3591 | L6: =SUMIF(3:3,L5,2:2) -> 99970.89626 | M6: =SUMIF(3:3,M5,2:2) -> 99723.81999 | N6: =SUMIF(3:3,N5,2:2) -> 99483.8783 | O6: =SUMIF(3:3,O5,2:2) -> 99255.64293 | P6: =SUMIF(3:3,P5,2:2) -> 99036.13316 | Q6: =SUMIF(3:3,Q5,2:2) -> 98827.0983 | R6: =SUMIF(3:3,R5,2:2) -> 98626.16204 | S6: =SUMIF(3:3,S5,2:2) -> 98438.14331 | T6: =SUMIF(3:3,T5,2:2) -> 98259.97134 | U6: =SUMIF(3:3,U5,2:2) -> 98093.50588 | V6: =SUMIF(3:3,V5,2:2) -> 97938.87747 | W6: =SUMIF(3:3,W5,2:2) -> 97489.87949 | X6: =SUMIF(3:3,X5,2:2) -> 95650.04783 | Y6: =SUMIF(3:3,Y5,2:2) -> 94982.82631 | Z6: =SUMIF(3:3,Z5,2:2) -> 94294.74092 | AA6: =SUMIF(3:3,AA5,2:2) -> 93619.58139 | AB6: =SUMIF(3:3,AB5,2:2) -> 309200.0893 | AC6: =SUMIF(3:3,AC5,2:2) -> 5.820766091e-12 | AD6: =SUMIF(3:3,AD5,2:2) -> 0 | AE6: =SUMIF(3:3,AE5,2:2) -> 0 | AF6: =SUMIF(3:3,AF5,2:2) -> 0 | AG6: =SUMIF(3:3,AG5,2:2) -> 0 | AH6: =SUMIF(3:3,AH5,2:2) -> 0 | AI6: =SUMIF(3:3,AI5,2:2) -> 0 | AJ6: =SUMIF(3:3,AJ5,2:2) -> 0 | AK6: =SUMIF(3:3,AK5,2:2) -> 0 | AL6: =SUMIF(3:3,AL5,2:2) -> 0 | AM6: =SUMIF(3:3,AM5,2:2) -> 0 | AN6: =SUMIF(3:3,AN5,2:2) -> 0 | AO6: =SUMIF(3:3,AO5,2:2) -> 0 | AP6: =SUMIF(3:3,AP5,2:2) -> 0 | AQ6: =SUMIF(3:3,AQ5,2:2) -> 0 | AR6: =SUMIF(3:3,AR5,2:2) -> 0 | AS6: =SUMIF(3:3,AS5,2:2) -> 0 | AT6: =SUMIF(3:3,AT5,2:2) -> 0 | AU6: =SUMIF(3:3,AU5,2:2) -> 0 | AV6: =SUMIF(3:3,AV5,2:2) -> 0
I8: =I6+SUM(D6:H6) -> 300437.6043 | J8: =J6 -> 100491.5591 | K8: =K6 -> 100227.3591 | L8: 99970.89626 | M8: 99723.81999 | N8: 99483.8783 | O8: 99255.64293 | P8: 99036.13316 | Q8: 98827.0983 | R8: 98626.16204 | S8: 98438.14331 | T8: 98259.97134 | U8: 98093.50588 | V8: 97938.87747 | W8: 97489.87949 | X8: 95650.04783 | Y8: 94982.82631 | Z8: 94294.74092 | AA8: 93619.58139 | AB8: 309200.0893 | AC8: 5.820766091e-12 | AD8: 0 | AE8: 0 | AF8: 0 | AG8: 0 | AH8: 0 | AI8: 0 | AJ8: 0 | AK8: 0 | AL8: 0 | AM8: 0 | AN8: 0 | AO8: 0 | AP8: 0 | AQ8: 0 | AR8: 0 | AS8: 0 | AT8: 0 | AU8: 0 | AV8: 0 | AW8: 0 | AX8: 0 | AY8: 0 | AZ8: 0 | BA8: 0 | BB8: 0 | BC8: 0 | BD8: 0 | BE8: 0 | BF8: 0 | BG8: 0 | BH8: 0 | BI8: 0 | BJ8: 0 | BK8: 0 | BL8: 0 | BM8: 0 | BN8: 0 | BO8: 0 | BP8: 0 | BQ8: 0 | BR8: 0 | BS8: 0 | BT8: 0 | BU8: 0 | BV8: 0 | BW8: =BW6 -> 0 | BX8: 0 | BY8: 0 | BZ8: 0 | CA8: 0 | CB8: 0 | CC8: 0 | CD8: 0 | CE8: 0 | CF8: 0 | CG8: 0 | CH8: 0 | CI8: 0 | CJ8: 0 | CK8: 0 | CL8: 0 | CM8: 0 | CN8: 0 | CO8: 0 | CP8: 0 | CQ8: 0 | CR8: 0 | CS8: 0 | CT8: 0 | CU8: 0 | CV8: 0 | CW8: 0 | CX8: 0 | CY8: 0 | CZ8: 0 | DA8: 0 | DB8: 0 | DC8: 0 | DD8: 0 | DE8: 0 | DF8: 0 | DG8: 0 | DH8: 0 | DI8: 0 | DJ8: 0 | DK8: 0 | DL8: 0 | DM8: 0 | DN8: 0 | DO8: 0 | DP8: 0 | DQ8: 0 | DR8: 0 | DS8: 0 | DT8: 0 | DU8: 0 | DV8: 0 | DW8: 0 | DX8: 0 | DY8: 0 | DZ8: 0 | EA8: 0 | EB8: 0 | EC8: 0 | ED8: 0 | EE8: 0 | EF8: 0 | EG8: 0 | EH8: 0 | EI8: =EI6 -> 0 | EJ8: 0 | EK8: 0 | EL8: 0 | EM8: 0 | EN8: 0 | EO8: 0 | EP8: 0 | EQ8: 0 | ER8: 0 | ES8: 0 | ET8: 0 | EU8: 0 | EV8: 0 | EW8: 0 | EX8: 0 | EY8: 0 | EZ8: 0 | FA8: 0 | FB8: 0 | FC8: 0 | FD8: 0 | FE8: 0 | FF8: 0 | FG8: 0 | FH8: 0 | FI8: 0 | FJ8: 0 | FK8: 0 | FL8: 0 | FM8: 0 | FN8: 0 | FO8: 0 | FP8: 0 | FQ8: 0 | FR8: 0 | FS8: 0 | FT8: 0 | FU8: 0
B10: XIRR | C10: =XIRR(B2:FU2,B1:FU1,100000) -> 0.179208206
B11: Annual IRR | C11: =IRR(6:6,) -> 0.2050657365 | E11: Year | F11: 2019 | I11: =IRR(I8:FU8) -> 
B12: Borrow Rate | C12: 0.1 | E12: Outflow | F12: 900000 | I12: =IRR(I6:AP6) -> 
B13: Re-investment | C13: 0.05
B14: MIRR | C14: =MIRR(6:6,C13,C12) -> 0.1105179285
B15: XMIRR | C15: =xmirr(B2:FU2,B1:FU1,C12,C13) -> 0.07135205612
B18: =XIRR(B2:FU2,B1:FU1) -> 0.1792082131
B19: 0.01 | C19: =XNPV(B19,$B$2:$FU$2,$B$1:$FU$1) -> 2019646.604
B20: 0.02 | C20: 1722001.307
B21: 0.03 | C21: 1470396.785
B22: 0.04 | C22: 1256338.308
B23: 0.05 | C23: 1073061.267
B24: 0.06 | C24: 915154.6202
B25: 0.07 | C25: 778270.5562
B26: 0.08 | C26: 658899.7805
B27: 0.09 | C27: 554196.9536
B28: 0.1 | C28: 461844.5775
B29: 0.11 | C29: 379946.4717
B30: 0.12 | C30: 306944.0978
B31: 0.13 | C31: 241550.589
B32: 0.14 | C32: 182698.5479
B33: 0.15 | C33: 129498.5883
B34: 0.16 | C34: 81206.28727
B35: 0.17 | C35: 37195.74771
B36: 0.18 | C36: -3061.629895
B37: 0.19 | C37: -40014.25385
B38: 0.2 | C38: -74044.17654
B39: 0.21 | C39: -105478.3245
B40: 0.22 | C40: -134597.6469
B41: 0.23 | C41: -161644.5945
B42: 0.24 | C42: -186829.257
B43: 0.25 | C43: -210334.416
B44: 0.26 | C44: -232319.7205
B45: 0.27 | C45: -252925.1504
B46: 0.28 | C46: -272273.8977
B47: 0.29 | C47: -290474.7737
B48: 0.3 | C48: -307624.2255
B49: 0.31 | C49: -323808.0319
B50: 0.32 | C50: -339102.7347
B51: 0.33 | C51: -353576.8496
B52: 0.34 | C52: -367291.8959
B53: 0.35 | C53: -380303.2731
B54: 0.36 | C54: -392661.0109
B55: 0.37 | C55: -404410.4122
B56: 0.38 | C56: -415592.607
B57: 0.39 | C57: -426245.0296
B58: 0.4 | C58: -436401.8322
B59: 0.41 | C59: -446094.2444
B60: 0.42 | C60: -455350.8856
B61: 0.43 | C61: -464198.0384
B62: 0.44 | C62: -472659.8877
B63: 0.45 | C63: -480758.7309
B64: 0.46 | C64: -488515.1628
B65: 0.47 | C65: -495948.2392
B66: 0.48 | C66: -503075.6216
B67: 0.49 | C67: -509913.7052
B68: 0.5 | C68: -516477.7332
B69: 0.51 | C69: -522781.8988
B70: 0.52 | C70: -528839.4358
B71: 0.53 | C71: -534662.7005
B72: 0.54 | C72: -540263.2443
B73: 0.55 | C73: -545651.88
B74: 0.56 | C74: -550838.7409
B75: 0.57 | C75: -555833.334
B76: 0.58 | C76: -560644.5891
B77: 0.59 | C77: -565280.9021
B78: 0.6 | C78: -569750.1752
B79: 0.61 | C79: -574059.8531
B80: 0.62 | C80: -578216.9559
B81: 0.63 | C81: -582228.1095
B82: 0.64 | C82: -586099.5732
B83: 0.65 | C83: =XNPV(B83,$B$2:$FU$2,$B$1:$FU$1) -> -589837.2646
B84: 0.66 | C84: -593446.783
B85: 0.67 | C85: -596933.4308
B86: 0.68 | C86: -600302.2325
B87: 0.69 | C87: -603557.9533
B88: 0.7 | C88: -606705.1153
B89: 0.71 | C89: -609748.0129
B90: 0.72 | C90: -612690.727
B91: 0.73 | C91: -615537.1381
B92: 0.74 | C92: -618290.9382
B93: 0.75 | C93: -620955.6423
B94: 0.76 | C94: -623534.5988
B95: 0.77 | C95: -626030.9989
B96: 0.78 | C96: -628447.8862
B97: 0.79 | C97: -630788.1645
B98: 0.8 | C98: -633054.606
B99: 0.81 | C99: -635249.8583
B100: 0.82 | C100: -637376.4515
B101: 0.83 | C101: -639436.8047
B102: 0.84 | C102: -641433.2312
B103: 0.85 | C103: -643367.9451
B104: 0.86 | C104: -645243.0658
B105: 0.87 | C105: -647060.6231
B106: 0.88 | C106: -648822.5619
B107: 0.89 | C107: -650530.7465
B108: 0.9 | C108: -652186.9643
B109: 0.91 | C109: -653792.9302
B110: 0.92 | C110: -655350.2898
B111: 0.93 | C111: -656860.6228
B112: 0.94 | C112: -658325.4464
B113: 0.95 | C113: -659746.2179
B114: 0.96 | C114: -661124.338
B115: 0.97 | C115: -662461.1532
B116: 0.98 | C116: -663757.9582
B117: 0.99 | C117: -665015.9987
B118: 1 | C118: -666236.4732
B119: 1.01 | C119: -667420.5354
B120: 1.02 | C120: -668569.2963
B121: 1.03 | C121: -669683.8257
B122: 1.04 | C122: -670765.1544
B123: 1.05 | C123: -671814.2759
B124: 1.06 | C124: -672832.1476
B125: 1.07 | C125: -673819.6931
B126: 1.08 | C126: -674777.8027
B127: 1.09 | C127: -675707.3358
B128: 1.1 | C128: -676609.1215
B129: 1.11 | C129: -677483.96
B130: 1.12 | C130: -678332.6241
B131: 1.13 | C131: -679155.8599
B132: 1.14 | C132: -679954.3884
B133: 1.15 | C133: -680728.9059
B134: 1.16 | C134: -681480.0855
B135: 1.17 | C135: -682208.578
B136: 1.18 | C136: -682915.0123
B137: 1.19 | C137: -683599.9967
B138: 1.2 | C138: -684264.1198
B139: 1.21 | C139: -684907.9509
B140: 1.22 | C140: -685532.041
B141: 1.23 | C141: -686136.9232
B142: 1.24 | C142: -686723.1139
B143: 1.25 | C143: -687291.1129
B144: 1.26 | C144: -687841.4044
B145: 1.27 | C145: -688374.4574
B146: 1.28 | C146: -688890.7261
B147: 1.29 | C147: =XNPV(B147,$B$2:$FU$2,$B$1:$FU$1) -> -689390.651
B148: 1.3 | C148: -689874.6588
B149: 1.31 | C149: -690343.1632
B150: 1.32 | C150: -690796.5652
B151: 1.33 | C151: -691235.254
B152: 1.34 | C152: -691659.6068
B153: 1.35 | C153: -692069.9896
B154: 1.36 | C154: -692466.7575
B155: 1.37 | C155: -692850.2552
B156: 1.38 | C156: -693220.8171
B157: 1.39 | C157: -693578.7679
B158: 1.4 | C158: -693924.4229
B159: 1.41 | C159: -694258.0882
B160: 1.42 | C160: -694580.0612
B161: 1.43 | C161: -694890.6305
B162: 1.44 | C162: -695190.0769
B163: 1.45 | C163: -695478.6728
B164: 1.46 | C164: -695756.6832
B165: 1.47 | C165: -696024.3657
B166: 1.48 | C166: -696281.9705
B167: 1.49 | C167: -696529.7409
B168: 1.5 | C168: -696767.9137
B169: 1.51 | C169: -696996.7188
B170: 1.52 | C170: -697216.3801
B171: 1.53 | C171: -697427.1154
B172: 1.54 | C172: -697629.1364
B173: 1.55 | C173: -697822.6492
B174: 1.56 | C174: -698007.8544
B175: 1.57 | C175: -698184.9472
B176: 1.58 | C176: -698354.1176
B177: 1.59 | C177: -698515.5506
B178: 1.6 | C178: -698669.4262
B179: 1.61 | C179: -698815.9199
B180: 1.62 | C180: -698955.2024
B181: 1.63 | C181: -699087.44
B182: 1.64 | C182: -699212.7949
B183: 1.65 | C183: -699331.4248
B184: 1.66 | C184: -699443.4836
B185: 1.67 | C185: -699549.1211
B186: 1.68 | C186: -699648.4834
B187: 1.69 | C187: -699741.7129
B188: 1.7 | C188: -699828.9483
B189: 1.71 | C189: -699910.3249
B190: 1.72 | C190: -699985.9746
B191: 1.73 | C191: -700056.0261
B192: 1.74 | C192: -700120.6046
B193: 1.75 | C193: -700179.8326
B194: 1.76 | C194: -700233.8293
B195: 1.77 | C195: -700282.7112
B196: 1.78 | C196: -700326.5917
B197: 1.79 | C197: -700365.5816
B198: 1.8 | C198: -700399.7891
B199: 1.81 | C199: -700429.3195
B200: 1.82 | C200: -700454.276
B201: 1.83 | C201: -700474.7588
B202: 1.84 | C202: -700490.8662
B203: 1.85 | C203: -700502.6938
B204: 1.86 | C204: -700510.3352
B205: 1.87 | C205: -700513.8816
... 483 more rows

Sheet ROIC Analysis
C2: Year | D2: 2015 | E2: 2016 | F2: 2017 | G2: 2018 | H2: 2019 | I2: 2020 | J2: 2021 | K2: 2022 | L2: 2023 | M2: 2024 | N2: 2025 | O2: 2026 | P2: 2027 | Q2: 2028 | R2: 2029 | S2: 2030 | T2: 2031 | U2: 2032 | V2: 2033 | W2: 2034 | X2: 2035 | Y2: 2036 | Z2: 2037 | AA2: 2038 | AB2: 2039 | AC2: 2040
C4: Cash Flow | D4: ='Neg and Pos'!C6 -> -0.1 | E4: ='Neg and Pos'!D6 -> -900000 | F4: ='Neg and Pos'!E6 -> 227933.1648 | G4: ='Neg and Pos'!F6 -> 254468.177 | H4: ='Neg and Pos'!G6 -> 253659.1305 | I4: ='Neg and Pos'!H6 -> 251907.4666 | J4: ='Neg and Pos'!I6 -> 212469.6653 | K4: ='Neg and Pos'!J6 -> 100491.5591 | L4: ='Neg and Pos'!K6 -> 100227.3591 | M4: ='Neg and Pos'!L6 -> 99970.89626 | N4: ='Neg and Pos'!M6 -> 99723.81999 | O4: ='Neg and Pos'!N6 -> 99483.8783 | P4: ='Neg and Pos'!O6 -> 99255.64293 | Q4: ='Neg and Pos'!P6 -> 99036.13316 | R4: ='Neg and Pos'!Q6 -> 98827.0983 | S4: ='Neg and Pos'!R6 -> 98626.16204 | T4: ='Neg and Pos'!S6 -> 98438.14331 | U4: ='Neg and Pos'!T6 -> 98259.97134 | V4: ='Neg and Pos'!U6 -> 98093.50588 | W4: ='Neg and Pos'!V6 -> 97938.87747 | X4: ='Neg and Pos'!W6 -> 97489.87949 | Y4: ='Neg and Pos'!X6 -> 95650.04783 | Z4: ='Neg and Pos'!Y6 -> 94982.82631 | AA4: ='Neg and Pos'!Z6 -> 94294.74092 | AB4: ='Neg and Pos'!AA6 -> 93619.58139 | AC4: ='Neg and Pos'!AB6 -> 309200.0893
B6: Conversion to Accounting Numbers
C7: Gain on Sale | D7: =D4 -> -0.1 | E7: -900000 | F7: 227933.1648 | G7: 254468.177 | H7: 253659.1305 | I7: 251907.4666
C8: Capital Expenditures | J8: =-J4 -> -212469.6653
C9: EBITDA | K9: =K50 -> 100491.5591 | L9: 100227.3591 | M9: 99970.89626 | N9: 99723.81999 | O9: 99483.8783 | P9: 99255.64293 | Q9: 99036.13316 | R9: 98827.0983 | S9: 98626.16204 | T9: 98438.14331 | U9: 98259.97134 | V9: 98093.50588 | W9: 97938.87747 | X9: 97489.87949 | Y9: 95650.04783 | Z9: 94982.82631 | AA9: 94294.74092 | AB9: 93619.58139 | AC9: 309200.0893
C10: Years | D10: =COUNT(9:9) -> 19
C12: Assets | E12: =D12+E7+E8 -> -900000 | F12: =E12+F7+F8 -> -672066.8352 | G12: -417598.6581 | H12: -163939.5277 | I12: 87967.93897 | J12: -124501.7263 | K12: -124501.7263
C13: Depreciation | D13: =D10 -> 19 | K13: =$K$12/$D$13 -> -6552.722439 | L13: -6552.722439 | M13: -6552.722439 | N13: -6552.722439 | O13: -6552.722439 | P13: -6552.722439 | Q13: -6552.722439 | R13: -6552.722439 | S13: -6552.722439 | T13: -6552.722439 | U13: -6552.722439 | V13: -6552.722439 | W13: -6552.722439 | X13: -6552.722439 | Y13: -6552.722439 | Z13: -6552.722439 | AA13: -6552.722439 | AB13: -6552.722439 | AC13: -6552.722439
C14: Accumulated Depreciation | E14: =D14+E13 -> 0 | F14: =E14+F13 -> 0 | G14: 0 | H14: 0 | I14: 0 | J14: 0 | K14: -6552.722439 | L14: =K14+L13 -> -13105.44488 | M14: =L14+M13 -> -19658.16732 | N14: =M14+N13 -> -26210.88976 | O14: =N14+O13 -> -32763.6122 | P14: =O14+P13 -> -39316.33463 | Q14: =P14+Q13 -> -45869.05707 | R14: =Q14+R13 -> -52421.77951 | S14: =R14+S13 -> -58974.50195 | T14: =S14+T13 -> -65527.22439 | U14: =T14+U13 -> -72079.94683 | V14: =U14+V13 -> -78632.66927 | W14: =V14+W13 -> -85185.39171 | X14: =W14+X13 -> -91738.11415 | Y14: =X14+Y13 -> -98290.83659 | Z14: =Y14+Z13 -> -104843.559 | AA14: =Z14+AA13 -> -111396.2815 | AB14: =AA14+AB13 -> -117949.0039 | AC14: =AB14+AC13 -> -124501.7263
B16: Income Statement
C17: EBITDA | E17: =E9 -> 0 | F17: =F9 -> 0 | G17: 0 | H17: 0 | I17: 0 | J17: 0 | K17: 100491.5591 | L17: 100227.3591 | M17: 99970.89626 | N17: 99723.81999 | O17: 99483.8783 | P17: 99255.64293 | Q17: 99036.13316 | R17: 98827.0983 | S17: 98626.16204 | T17: 98438.14331 | U17: 98259.97134 | V17: 98093.50588 | W17: 97938.87747 | X17: 97489.87949 | Y17: 95650.04783 | Z17: 94982.82631 | AA17: 94294.74092 | AB17: 93619.58139 | AC17: 309200.0893
C18: Depreciation | E18: =E13 -> 0 | F18: =F13 -> 0 | G18: 0 | H18: 0 | I18: 0 | J18: 0 | K18: -6552.722439 | L18: -6552.722439 | M18: -6552.722439 | N18: -6552.722439 | O18: -6552.722439 | P18: -6552.722439 | Q18: -6552.722439 | R18: -6552.722439 | S18: -6552.722439 | T18: -6552.722439 | U18: -6552.722439 | V18: -6552.722439 | W18: -6552.722439 | X18: -6552.722439 | Y18: -6552.722439 | Z18: -6552.722439 | AA18: -6552.722439 | AB18: -6552.722439 | AC18: -6552.722439
C19: EBIT | E19: =E17-E18 -> 0 | F19: =F17-F18 -> 0 | G19: 0 | H19: 0 | I19: 0 | J19: 0 | K19: 107044.2815 | L19: 106780.0815 | M19: 106523.6187 | N19: 106276.5424 | O19: 106036.6007 | P19: 105808.3654 | Q19: 105588.8556 | R19: 105379.8207 | S19: 105178.8845 | T19: 104990.8657 | U19: 104812.6938 | V19: 104646.2283 | W19: 104491.5999 | X19: 104042.6019 | Y19: 102202.7703 | Z19: 101535.5488 | AA19: 100847.4634 | AB19: 100172.3038 | AC19: 315752.8118
C20: Add: Asset Write-up | E20: =E4 -> -900000 | F20: =F4 -> 227933.1648 | G20: =G4 -> 254468.177 | H20: =H4 -> 253659.1305 | I20: =I4 -> 251907.4666
C21: Earnings | E21: =E19+E20 -> -900000 | F21: =F19+F20 -> 227933.1648 | G21: 254468.177 | H21: 253659.1305 | I21: 251907.4666 | J21: =J19+J20 -> 0 | K21: =K19+K20 -> 107044.2815 | L21: =L19+L20 -> 106780.0815 | M21: =M19+M20 -> 106523.6187 | N21: =N19+N20 -> 106276.5424 | O21: =O19+O20 -> 106036.6007 | P21: =P19+P20 -> 105808.3654 | Q21: =Q19+Q20 -> 105588.8556 | R21: =R19+R20 -> 105379.8207 | S21: =S19+S20 -> 105178.8845 | T21: =T19+T20 -> 104990.8657 | U21: =U19+U20 -> 104812.6938 | V21: =V19+V20 -> 104646.2283 | W21: =W19+W20 -> 104491.5999 | X21: =X19+X20 -> 104042.6019 | Y21: =Y19+Y20 -> 102202.7703 | Z21: =Z19+Z20 -> 101535.5488 | AA21: =AA19+AA20 -> 100847.4634 | AB21: =AB19+AB20 -> 100172.3038 | AC21: =AC19+AC20 -> 315752.8118
B23: Balance Sheet
C24: Assets | E24: =E12 -> -900000 | F24: =F12 -> -672066.8352 | G24: -417598.6581 | H24: -163939.5277 | I24: 87967.93897 | J24: -124501.7263 | K24: -124501.7263 | L24: =K24 -> -124501.7263 | M24: =L24 -> -124501.7263 | N24: -124501.7263 | O24: -124501.7263 | P24: -124501.7263 | Q24: -124501.7263 | R24: -124501.7263 | S24: -124501.7263 | T24: -124501.7263 | U24: -124501.7263 | V24: -124501.7263 | W24: -124501.7263 | X24: -124501.7263 | Y24: -124501.7263 | Z24: -124501.7263 | AA24: -124501.7263 | AB24: -124501.7263 | AC24: -124501.7263
C25: Less: Accum Dep | E25: =E14 -> 0 | F25: =F14 -> 0 | G25: 0 | H25: 0 | I25: 0 | J25: 0 | K25: -6552.722439 | L25: -13105.44488 | M25: -19658.16732 | N25: -26210.88976 | O25: -32763.6122 | P25: -39316.33463 | Q25: -45869.05707 | R25: -52421.77951 | S25: -58974.50195 | T25: -65527.22439 | U25: -72079.94683 | V25: -78632.66927 | W25: -85185.39171 | X25: -91738.11415 | Y25: -98290.83659 | Z25: -104843.559 | AA25: -111396.2815 | AB25: -117949.0039 | AC25: -124501.7263
C26: Net Asset | D26: =D7 -> -0.1 | E26: =E24-E25 -> -900000 | F26: =F24-F25 -> -672066.8352 | G26: -417598.6581 | H26: -163939.5277 | I26: 87967.93897 | J26: -124501.7263 | K26: -117949.0039 | L26: -111396.2815 | M26: -104843.559 | N26: -98290.83659 | O26: -91738.11415 | P26: -85185.39171 | Q26: -78632.66927 | R26: -72079.94683 | S26: -65527.22439 | T26: -58974.50195 | U26: -52421.77951 | V26: -45869.05707 | W26: -39316.33463 | X26: -32763.6122 | Y26: -26210.88976 | Z26: -19658.16732 | AA26: -13105.44488 | AB26: -6552.722439 | AC26: 0
C28: Equity | D28: 0.1 | E28: =E26 -> -900000 | F28: =F26 -> -672066.8352 | G28: -417598.6581 | H28: -163939.5277 | I28: 87967.93897 | J28: -124501.7263 | K28: -117949.0039 | L28: -111396.2815 | M28: -104843.559 | N28: -98290.83659 | O28: -91738.11415 | P28: -85185.39171 | Q28: -78632.66927 | R28: -72079.94683 | S28: -65527.22439 | T28: -58974.50195 | U28: -52421.77951 | V28: -45869.05707 | W28: -39316.33463 | X28: -32763.6122 | Y28: -26210.88976 | Z28: -19658.16732 | AA28: -13105.44488 | AB28: -6552.722439 | AC28: 0
C30: ROIC | E30: 5 | F30: =F21/E28 -> -0.253259072 | G30: -0.3786352245 | H30: -0.6074232413 | I30: -1.53658773 | J30: 0 | K30: -0.8597815041 | L30: -0.9053071921 | M30: -0.9562582996 | N30: -1.013667825 | O30: -1.07880454 | P30: -1.153374106 | Q30: -1.239518343 | R30: -1.340153167 | S30: -1.459197587 | T30: -1.602248023 | U30: -1.777254412 | V30: -1.996235711 | W30: -2.278041158 | X30: -2.646294546 | Y30: -3.11939873 | Z30: -3.873792523 | AA30: -5.130054177 | AB30: -7.643563783 | AC30: -48.18650793
C32: Discount Rate | D32: 0.05
C33: Factor | D33: 1 | E33: =D33*(1+$D$32) -> 1.05 | F33: 1.1025 | G33: 1.157625 | H33: 1.21550625 | I33: 1.276281563 | J33: 1.340095641 | K33: 1.407100423 | L33: 1.477455444 | M33: 1.551328216 | N33: 1.628894627 | O33: 1.710339358 | P33: 1.795856326 | Q33: 1.885649142 | R33: 1.979931599 | S33: 2.078928179 | T33: 2.182874588 | U33: 2.292018318 | V33: 2.406619234 | W33: 2.526950195 | X33: 2.653297705 | Y33: 2.78596259 | Z33: 2.92526072 | AA33: 3.071523756 | AB33: 3.225099944 | AC33: 3.386354941
C35: PV of Equity | E35: =E28/E33 -> -857142.8571 | F35: =E26/F33 -> -816326.5306 | G35: =F26/G33 -> -580556.6009 | H35: -343559.4495 | I35: -128450.9096 | J35: 65643.03047 | K35: -88481.05248 | L35: -79832.52855 | M35: -71807.03627 | N35: -64364.85043 | O35: -57468.61646 | P35: -51083.21463 | Q35: -45175.63199 | R35: -39714.84131 | S35: -34671.68685 | T35: -30018.7765 | U35: -25730.37985 | V35: -21782.33215 | W35: -18151.94346 | X35: -14817.91303 | Y35: -11760.24844 | Z35: -8960.189284 | AA35: -6400.135203 | AB35: -4063.577907 | AC35: -1935.037098
C37: Repeat of Cash Flow | D37: =D4 -> -0.1 | E37: =E4 -> -900000 | F37: 227933.1648 | G37: 254468.177 | H37: 253659.1305 | I37: 251907.4666 | J37: 212469.6653 | K37: 100491.5591 | L37: 100227.3591 | M37: 99970.89626 | N37: 99723.81999 | O37: 99483.8783 | P37: 99255.64293 | Q37: 99036.13316 | R37: 98827.0983 | S37: 98626.16204 | T37: 98438.14331 | U37: 98259.97134 | V37: 98093.50588 | W37: 97938.87747 | X37: 97489.87949 | Y37: 95650.04783 | Z37: 94982.82631 | AA37: 94294.74092 | AB37: 93619.58139 | AC37: 309200.0893
C39: Finance Rate | D39: =D32 -> 0.05
C40: Compound Factor | D40: 1 | E40: =D40*(1+$D$39) -> 1.05 | F40: 1.1025 | G40: 1.157625 | H40: 1.21550625 | I40: 1.276281563 | J40: 1.340095641 | K40: 1.407100423 | L40: 1.477455444 | M40: 1.551328216 | N40: 1.628894627 | O40: 1.710339358 | P40: 1.795856326 | Q40: 1.885649142 | R40: 1.979931599 | S40: 2.078928179 | T40: 2.182874588 | U40: 2.292018318 | V40: 2.406619234 | W40: 2.526950195 | X40: 2.653297705 | Y40: 2.78596259 | Z40: 2.92526072 | AA40: 3.071523756 | AB40: 3.225099944 | AC40: 3.386354941 | AD40: 3.555672688 | AE40: 3.733456322 | AF40: 3.920129138 | AG40: 4.116135595 | AH40: 4.321942375 | AI40: 4.538039494 | AJ40: 4.764941469 | AK40: 5.003188542 | AL40: 5.253347969 | AM40: 5.516015368 | AN40: 5.791816136 | AO40: 6.081406943 | AP40: 6.38547729 | AQ40: 6.704751154 | AR40: 7.039988712 | AS40: 7.391988148 | AT40: 7.761587555 | AU40: 8.149666933 | AV40: 8.55715028 | AW40: 8.985007793
C41: Value of Cash Flow | I41: =I40*E4 -> -1148653.406
I42: =H40*F4 -> 277054.1864
I43: =G40*G4 -> 294578.7234
I44: =H4*F40 -> 279659.1913
I45: =I4*E40 -> 264502.84
I46: =SUM(I41:I45) -> -32858.46506
C48: Single Adjusted Value | J48: =J37 -> 212469.6653
C49: Add: Cash Recipts | J49: =I46 -> -32858.46506
C50: Adjusted Cash Flow | J50: =J4+I46 -> 179611.2003 | K50: =K4 -> 100491.5591 | L50: 100227.3591 | M50: 99970.89626 | N50: 99723.81999 | O50: 99483.8783 | P50: 99255.64293 | Q50: 99036.13316 | R50: 98827.0983 | S50: 98626.16204 | T50: 98438.14331 | U50: 98259.97134 | V50: 98093.50588 | W50: 97938.87747 | X50: 97489.87949 | Y50: 95650.04783 | Z50: 94982.82631 | AA50: 94294.74092 | AB50: 93619.58139 | AC50: 309200.0893
C51: Adjusted IRR | J51: =IRR(50:50) -> 
C53: Weighting | E53: =E35/SUM(35:35) -> 0.2568900792 | F53: 0.2446572182 | G53: 0.1739957697 | H53: 0.1029665165 | I53: 0.03849739174 | J53: -0.01967355051 | K53: 0.02651822201 | L53: 0.02392621534 | M53: 0.02152093444 | N53: 0.01929047344 | O53: 0.017223637 | P53: 0.01530989956 | Q53: 0.01353936696 | R53: 0.01190274018 | S53: 0.01039128111 | T53: 0.008996780182 | U53: 0.007711525871 | V53: 0.006528275869 | W53: 0.005440229891 | X53: 0.004441003993 | Y53: 0.003524606343 | Z53: 0.002685414357 | AA53: 0.001918153112 | AB53: 0.001217874992 | AC53: 0.0005799404723
C55: Weighted Average ROE | E55: =SUMPRODUCT(53:53,30:30) -> 0.7323895792
C56: MIRR | E56: =MIRR(D4:AC4,D32,D32) -> 0.08490665591
C57: Adjusted IRR with Beginning | E57: =J51 -> 
A76: Normal Case
C78: Cash Flow | F78: 50 | G78: =F78*1.03 -> 51.5 | H78: =G78*1.03 -> 53.045 | I78: 54.63635 | J78: 56.2754405 | K78: 57.96370372 | L78: 59.70261483 | M78: 61.49369327 | N78: 63.33850407 | O78: 65.23865919 | P78: 67.19581897 | Q78: 69.21169354 | R78: 71.28804434 | S78: 73.42668567 | T78: 75.62948624 | U78: 77.89837083 | V78: 80.23532195 | W78: 82.64238161 | X78: 85.12165306 | Y78: 87.67530265 | Z78: 90.30556173 | AA78: 93.01472859 | AB78: 95.80517044 | AC78: 98.67932556
C79: Cap Exp | E79: 600
C80: Net Cash Flow | E80: =E78-E79 -> -600 | F80: =F78-F79 -> 50 | G80: 51.5 | H80: 53.045 | I80: 54.63635 | J80: 56.2754405 | K80: 57.96370372 | L80: 59.70261483 | M80: 61.49369327 | N80: 63.33850407 | O80: 65.23865919 | P80: 67.19581897 | Q80: 69.21169354 | R80: 71.28804434 | S80: 73.42668567 | T80: 75.62948624 | U80: 77.89837083 | V80: 80.23532195 | W80: 82.64238161 | X80: 85.12165306 | Y80: 87.67530265 | Z80: 90.30556173 | AA80: 93.01472859 | AB80: 95.80517044 | AC80: 98.67932556
C82: IRR | D82: =IRR(80:80) -> 0.09351086869
C84: Depreciation | D84: =COUNT(78:78) -> 24 | F84: =$E$79/$D$84 -> 25 | G84: =$E$79/$D$84 -> 25 | H84: 25 | I84: 25 | J84: 25 | K84: 25 | L84: 25 | M84: 25 | N84: 25 | O84: 25 | P84: 25 | Q84: 25 | R84: 25 | S84: 25 | T84: 25 | U84: 25 | V84: 25 | W84: 25 | X84: 25 | Y84: 25 | Z84: 25 | AA84: 25 | AB84: 25 | AC84: 25
C85: EBIT | F85: =F78-F84 -> 25 | G85: =G78-G84 -> 26.5 | H85: 28.045 | I85: 29.63635 | J85: 31.2754405 | K85: 32.96370372 | L85: 34.70261483 | M85: 36.49369327 | N85: 38.33850407 | O85: 40.23865919 | P85: 42.19581897 | Q85: 44.21169354 | R85: 46.28804434 | S85: 48.42668567 | T85: 50.62948624 | U85: 52.89837083 | V85: 55.23532195 | W85: 57.64238161 | X85: 60.12165306 | Y85: 62.67530265 | Z85: 65.30556173 | AA85: 68.01472859 | AB85: 70.80517044 | AC85: 73.67932556
C87: Investment | E87: =$E$79 -> 600 | F87: =$E$79 -> 600 | G87: 600 | H87: 600 | I87: 600 | J87: 600 | K87: 600 | L87: 600 | M87: 600 | N87: 600 | O87: 600 | P87: 600 | Q87: 600 | R87: 600 | S87: 600 | T87: 600 | U87: 600 | V87: 600 | W87: 600 | X87: 600 | Y87: 600 | Z87: 600 | AA87: 600 | AB87: 600 | AC87: 600
C88: Accumulated Depreciation | F88: =E88+F84 -> 25 | G88: =F88+G84 -> 50 | H88: 75 | I88: 100 | J88: 125 | K88: 150 | L88: 175 | M88: 200 | N88: 225 | O88: 250 | P88: 275 | Q88: 300 | R88: 325 | S88: 350 | T88: 375 | U88: 400 | V88: 425 | W88: 450 | X88: 475 | Y88: 500 | Z88: 525 | AA88: 550 | AB88: 575 | AC88: 600
C89: Net | E89: =E87-E88 -> 600 | F89: =F87-F88 -> 575 | G89: 550 | H89: 525 | I89: 500 | J89: 475 | K89: 450 | L89: 425 | M89: 400 | N89: 375 | O89: 350 | P89: 325 | Q89: 300 | R89: 275 | S89: 250 | T89: 225 | U89: 200 | V89: 175 | W89: 150 | X89: 125 | Y89: 100 | Z89: 75 | AA89: 50 | AB89: 25 | AC89: 0
C91: ROIC | F91: =F85/E89 -> 0.04166666667 | G91: =G85/F89 -> 0.04608695652 | H91: 0.05099090909 | I91: 0.05645019048 | J91: 0.062550881 | K91: 0.06939727098 | L91: 0.07711692184 | M91: 0.08586751358 | N91: 0.09584626017 | O91: 0.1073030912 | P91: 0.1205594828 | Q91: 0.1360359801 | R91: 0.1542934811 | S91: 0.1760970388 | T91: 0.202517945 | U91: 0.2351038704 | V91: 0.2761766098 | W91: 0.3293850378 | X91: 0.4008110204 | Y91: 0.5014024212 | Z91: 0.6530556173 | AA91: 0.9068630478 | AB91: 1.416103409 | AC91: 2.947173022
C92: Discount Rate | D92: =D82 -> 0.09351086869
C93: Discount Factor | E93: 1 | F93: =E93*(1+$D$92) -> 1.093510869 | G93: =F93*(1+$D$92) -> 1.19576602 | H93: 1.307583139 | I93: 1.429856374 | J93: 1.563563486 | K93: 1.709773666 | L93: 1.869656087 | M93: 2.044489252 | N93: 2.235671218 | O93: 2.444730775 | P93: 2.673339674 | Q93: 2.923325989 | R93: 3.196688742 | S93: 3.495613883 | T93: 3.822491774 | U93: 4.1799363 | V93: 4.570805775 | W93: 4.998225793 | X93: 5.465614229 | Y93: 5.976708563 | Z93: 6.535595773 | AA93: 7.146745011 | AB93: 7.815043346 | AC93: 8.545834838
C94: Weighting Base | F94: =E89/F93 -> 548.6913913 | G94: =F89/G93 -> 480.8633047 | H94: 420.6233497 | I94: 367.1697447 | J94: 319.7823462 | K94: 277.814549 | L94: 240.685976 | M94: 207.8758789 | N94: 178.9171846 | O94: 153.3911234 | P94: 130.9223828 | Q94: 111.1747377 | R94: 93.84711001 | S94: 78.67001597 | T94: 65.40236443 | U94: 53.8285715 | V94: 43.75596117 | W94: 35.01242386 | X94: 27.44430794 | Y94: 20.91452154 | Z94: 15.3008239 | AA94: 10.49428794 | AB94: 6.397917169 | AC94: 2.925401728
C95: Weighting Factor | F95: =F94/SUM(94:94) -> 0.1409827054 | G95: =G94/SUM(94:94) -> 0.1235547171 | H95: 0.1080764501 | I95: 0.09434189194 | J95: 0.08216600627 | K95: 0.07138265214 | L95: 0.06184270535 | M95: 0.05341236303 | N95: 0.04597161378 | O95: 0.03941285739 | P95: 0.03363965976 | Q95: 0.02856563004 | R95: 0.02411340814 | S95: 0.02021375196 | T95: 0.01680471467 | U95: 0.01383090341 | V95: 0.01124281132 | W95: 0.008996215934 | X95: 0.007051637482 | Y95: 0.005373851085 | Z95: 0.003931447772 | AA95: 0.002696439435 | AB95: 0.00164390345 | AC95: 0.0007516630595
C97: Weighted ROIC | D97: =SUMPRODUCT(95:95,91:91) -> 0.0935108687
C98: MIRR | D98: =MIRR(80:80,D92,D92) -> 0.0935108687
C99: IRR | D99: =D82 -> 0.09351086869
